bitfinex/quotes_ETHUSD_20241019
["timestamp","ask_amount","ask_price","bid_price","bid_amount"]
[1729307122649,0.99,2650.0,2649.3,0.55]
[1729307122857,0.99,2650.0,2649.5,0.8164]
[1729307125549,0.99,2650.0,2649.5,0.8005]
[1729307136005,0.99,2650.0,2649.6,0.07547125]
[1729307136357,0.99,2650.0,2649.5,0.8005]
[1729307138712,0.99,2650.0,2649.6,0.07546712]
[1729307139503,0.99,2650.0,2649.5,0.8005]
[1729307140651,0.99,2650.0,2649.6,0.07546656]
[1729307141129,0.99,2650.0,2649.5,0.8005]
[1729307141313,0.99,2650.0,2649.7,0.8144]
[1729307147723,0.99,2650.0,2649.8,0.07546723]
[1729307149453,0.99,2650.0,2649.7,0.8144]
[1729307150851,0.99,2650.0,2649.8,0.07546734]
[1729307151761,0.99,2650.0,2649.7,0.8144]
[1729307162312,1.4841,2650.0,2649.5,0.8191]
[1729307169683,1.4841,2650.0,2649.2,0.8191]
[1729307169889,0.4941,2649.9,2649.2,0.8191]
[1729307170252,0.4941,2649.9,2649.4,3.0]
[1729307170448,0.4941,2649.9,2649.2,0.8191]
[1729307171491,0.4941,2649.9,2649.1,0.55]
[1729307179980,0.4941,2649.9,2649.2,0.8167]
[1729307182610,0.4941,2649.9,2649.3,0.07547469]
[1729307183051,0.4941,2649.9,2649.3,3.07547469]
[1729307183233,0.4941,2649.9,2649.4,0.38921747]
[1729307183434,0.4941,2649.9,2649.2,0.8167]
[1729307184372,0.4941,2649.9,2649.3,0.07547483]
[1729307184709,0.4941,2649.9,2649.3,3.07547483]
[1729307184949,0.4941,2649.9,2649.3,0.07547483]
[1729307188261,0.99,2650.0,2649.4,0.8167]
[1729307188475,0.99,2650.0,2649.5,0.07546988]
[1729307188769,0.99,2650.0,2649.4,0.8167]
[1729307189557,0.99,2650.0,2649.5,0.07546994]
[1729307190118,0.99,2650.0,2649.4,0.8167]
[1729307193642,0.99,2650.0,2649.5,0.55]
[1729307196580,1.14e-06,2650.3,2650.2,0.7866]
[1729307196724,1.14e-06,2650.3,2650.2,1.29570948]
[1729307196932,1.14e-06,2650.3,2650.2,1.41204948]
[1729307197228,1.14e-06,2650.3,2650.2,1.3366]
[1729307197456,1.14e-06,2650.3,2650.2,1.89006143]
[1729307197683,1.14e-06,2650.3,2650.2,5.17045297]
[1729307198398,0.6221142,2651.5,2650.4,0.55]
[1729307198699,0.6221142,2651.5,2650.6,0.55]
[1729307199000,0.4941,2651.4,2650.4,0.55]
[1729307199353,0.4941,2651.4,2650.3,0.7866]
[1729307199569,0.4941,2651.4,2650.4,0.6254423]
[1729307201113,0.4941,2651.4,2650.4,0.55]
[1729307202169,0.4941,2651.4,2650.6,0.55]
[1729307202977,0.4941,2651.4,2650.4,0.55]
[1729307204378,0.4941,2651.4,2650.6,0.55]
[1729307204777,0.4941,2651.4,2650.3,0.7866]
[1729307204778,0.4941,2651.4,2650.4,0.55]
[1729307206516,0.4941,2651.4,2650.6,0.55]
[1729307206682,0.4941,2651.4,2650.7,0.07543393]
[1729307207083,0.4941,2651.4,2650.3,0.7866]
[1729307207084,0.4941,2651.4,2650.8,0.55]
[1729307207428,0.4941,2651.4,2650.9,0.07542921]
[1729307207978,0.4941,2651.4,2650.8,1.3366]
[1729307211905,0.4941,2651.4,2650.9,0.07542933]
[1729307212423,0.4941,2651.4,2650.8,1.3366]
[1729307212934,0.1280142,2651.5,2650.8,1.3366]
[1729307215798,0.4941,2651.4,2650.8,1.3366]
[1729307218314,4.2e-06,2651.5,2651.0,0.55]
[1729307218850,4.2e-06,2651.5,2651.1,0.07541722]
[1729307219008,4.2e-06,2651.5,2651.2,0.55]
[1729307219209,4.2e-06,2651.5,2651.4,0.55]
[1729307222639,4.2e-06,2651.7,2651.4,0.55]
[1729307222847,4.2e-06,2651.7,2651.5,0.0754135]
[1729307223050,4.2e-06,2651.7,2651.4,0.55]
[1729307223448,4.2e-06,2651.7,2651.5,0.07541353]
[1729307224008,4.2e-06,2651.7,2651.4,0.55]
[1729307231225,4.2e-06,2651.7,2651.2,0.55]
[1729307234862,4.2e-06,2651.7,2651.3,0.07540826]
[1729307235045,4.2e-06,2651.7,2651.4,0.55]
[1729307235246,4.2e-06,2651.7,2651.3,0.07540826]
[1729307235247,4.2e-06,2651.7,2651.6,0.55]
[1729307235764,4.2e-06,2652.1,2651.6,0.55]
[1729307236460,4.2e-06,2652.1,2651.1,0.47803047]
[1729307236461,4.2e-06,2652.1,2651.8,0.55]
[1729307236670,4.2e-06,2652.2,2652.0,0.55]
[1729307236839,4.2e-06,2652.2,2652.1,0.62538958]
[1729307237165,4.2e-06,2652.2,2652.1,0.74559896]
[1729307237366,0.39294557,2653.6,2652.2,0.55]
[1729307237367,4.2e-06,2652.4,2652.2,0.55]
[1729307238267,4.2e-06,2652.4,2652.3,0.55]
[1729307238467,4.2e-06,2652.4,2652.3,0.62538745]
[1729307238626,4.2e-06,2652.4,2652.2,0.55]
[1729307239323,4.2e-06,2652.4,2651.4,3.2218]
[1729307239324,4.2e-06,2652.4,2651.4,4.0024]
[1729307239520,4.2e-06,2652.4,2651.5,0.40024]
[1729307239750,4.2e-06,2652.4,2651.4,0.7806]
[1729307239959,4.2e-06,2652.4,2651.5,0.07540373]
[1729307240160,3.7191742,2653.1,2651.4,0.7806]
[1729307240942,3.7191742,2653.1,2651.5,0.55]
[1729307241353,7.47,2653.5,2651.5,0.55]
[1729307241539,0.747,2653.4,2651.8,0.55]
[1729307241861,0.747,2653.4,2652.0,0.55]
[1729307242167,0.747,2653.4,2652.3,0.55]
[1729307242328,7.47,2654.0,2652.3,0.55]
[1729307242526,11.23793,2654.0,2652.3,0.55]
[1729307243340,3.76807,2653.9,2652.3,0.55]
[1729307243981,7.47,2654.0,2652.3,0.55]
[1729307244278,3.76808,2653.9,2652.3,0.55]
[1729307244685,4.16127779,2653.8,2652.3,0.55]
[1729307245188,3.76834,2653.7,2652.3,0.55]
[1729307245481,4.16129779,2653.8,2652.3,0.55]
[1729307245840,0.39307779,2653.8,2652.3,0.55]
[1729307246045,0.79294178,2653.7,2652.4,0.7806]
[1729307246273,0.39307779,2653.8,2652.5,0.55]
[1729307247194,0.12253237,2654.1,2653.1,0.55]
[1729307247497,0.12253237,2654.1,2653.0,0.7806]
[1729307247498,0.12253237,2654.1,2653.3,0.55]
[1729307247982,0.12253237,2654.1,2653.4,0.55]
[1729307248191,0.12253237,2654.1,2654.0,0.7806]
[1729307248392,0.12253237,2654.1,2654.0,1.15866]
[1729307248595,0.12253237,2654.1,2654.0,1.3306]
[1729307248760,0.12253237,2654.1,2653.2,0.7806]
[1729307248943,0.12253237,2654.1,2653.3,0.55]
[1729307249141,0.12253237,2654.1,2653.5,0.55]
[1729307249455,0.12253237,2654.1,2654.0,0.55]
[1729307250417,0.12253237,2654.1,2653.7,0.55]
[1729307251973,0.12253237,2654.1,2653.8,0.07534882]
[1729307252425,0.12253237,2654.1,2653.9,0.55]
[1729307252726,0.12253237,2654.1,2653.7,0.55]
[1729307253773,0.12253237,2654.1,2653.6,0.7806]
[1729307253981,0.00081841,2654.0,2653.6,0.7806]
[1729307254174,0.00081841,2654.0,2653.7,0.02396721]
[1729307254523,0.00081841,2654.0,2653.2,0.7806]
[1729307254680,0.00081841,2654.0,2653.3,0.67154394]
[1729307254879,0.00081841,2654.0,2653.3,0.59619085]
[1729307255122,0.00081841,2654.0,2653.4,0.55]
[1729307256378,0.00081841,2654.0,2653.8,3.0]
[1729307256623,0.00081841,2654.0,2653.9,0.02425967]
[1729307256932,0.00081841,2654.0,2653.8,3.0]
[1729307257286,0.00081841,2654.0,2653.4,0.55]
[1729307258977,0.00081841,2654.0,2653.3,0.59619085]
[1729307259139,0.00081841,2654.0,2653.1,0.07536633]
[1729307260233,0.00081841,2654.0,2653.1,0.55]
[1729307260434,0.00081841,2654.0,2653.2,0.07536787]
[1729307260629,0.00081841,2654.0,2652.9,0.8262]
[1729307260630,0.00081841,2654.0,2653.0,0.55]
[1729307261081,0.00081841,2654.0,2653.3,0.8262]
[1729307261286,8.41e-06,2654.0,2653.6,0.8262]
[1729307261435,8.41e-06,2654.0,2653.4,0.07535969]
[1729307261436,6.69e-06,2654.1,2654.0,0.8262]
[1729307261657,6.69e-06,2654.1,2654.0,1.45153442]
[1729307261860,6.69e-06,2654.1,2654.0,1.65168786]
[1729307262272,6.69e-06,2654.1,2654.0,5.6093937]
[1729307263697,6.69e-06,2654.1,2654.0,2.08695285]
[1729307263853,6.69e-06,2654.1,2654.0,1.57635344]
[1729307264989,6.69e-06,2654.1,2653.5,0.55]
[1729307265708,6.69e-06,2654.1,2653.5,1.02890411]
[1729307265859,6.69e-06,2654.1,2653.6,0.51059941]
[1729307266900,6.69e-06,2654.1,2653.7,1.10423009]
[1729307267076,6.69e-06,2654.1,2653.8,0.51059941]
[1729307267408,6.69e-06,2654.1,2654.0,0.55]
[1729307267695,6.69e-06,2654.1,2654.0,1.06059941]
[1729307268004,6.69e-06,2654.1,2654.0,2.36570352]
[1729307268301,6.69e-06,2654.1,2654.0,1.62030288]
[1729307269103,6.69e-06,2654.1,2654.0,1.69561277]
[1729307269955,6.69e-06,2654.1,2654.0,1.62030288]
[1729307272710,6.69e-06,2654.1,2654.0,1.69562451]
[1729307275011,6.69e-06,2654.1,2654.0,1.62030288]
[1729307276052,6.69e-06,2654.1,2654.0,1.69561902]
[1729307276854,6.69e-06,2654.1,2654.0,1.62030288]
[1729307279165,6.69e-06,2654.1,2654.0,4.62030288]
[1729307279326,6.69e-06,2654.1,2654.0,1.62030288]
[1729307281201,6.69e-06,2654.1,2654.0,0.24410288]
[1729307281493,6.69e-06,2654.3,2654.0,0.04096139]
[1729307281989,6.69e-06,2654.3,2653.8,0.7879]
[1729307282482,6.69e-06,2654.3,2653.9,0.55]
[1729307283287,6.69e-06,2654.3,2654.0,0.02290095]
[1729307283860,6.69e-06,2654.3,2654.1,0.55]
[1729307284245,6.69e-06,2654.3,2653.4,1.22776551]
[1729307284460,0.0655,2654.2,2653.5,0.55]
[1729307284660,0.0655,2654.2,2653.4,0.7879]
[1729307285786,0.0655,2654.2,2653.5,0.55]
[1729307286087,0.0655,2655.5,2653.8,3.971]
[1729307286289,0.005,2656.4,2654.3,0.55]
[1729307286442,0.005,2656.4,2654.5,0.55]
[1729307286644,0.005,2656.4,2654.7,0.55]
[1729307287143,0.005,2656.4,2655.5,3.0]
[1729307287356,0.005,2656.4,2655.6,0.03686904]
[1729307287545,0.005,2656.4,2654.9,0.55]
[1729307287788,0.005,2656.4,2654.6,0.7879]
[1729307287945,0.005,2656.4,2654.7,0.55]
[1729307288169,0.005,2656.4,2654.7,0.58688155]
[1729307288398,0.005,2656.4,2654.7,0.55]
[1729307288579,0.005,2656.4,2654.8,0.03688016]
[1729307288780,0.005,2656.4,2654.9,0.55]
[1729307288993,0.005,2656.4,2655.0,0.03687739]
[1729307289304,0.0655,2656.3,2654.7,0.55]
[1729307289502,0.0655,2656.3,2654.8,0.03688016]
[1729307289706,0.0655,2656.3,2654.8,0.0638695]
[1729307289919,0.0655,2656.3,2654.9,0.55]
[1729307290202,0.0655,2656.3,2654.7,0.55]
[1729307290883,0.0655,2656.2,2654.7,0.55]
[1729307293421,0.0655,2656.2,2655.2,3.0]
[1729307293622,0.0655,2656.2,2654.9,0.55]
[1729307294914,0.0655,2656.2,2655.1,0.55]
[1729307297082,0.0655,2656.2,2654.8,3.0]
[1729307297083,0.0655,2656.2,2655.2,0.81198363]
[1729307297286,0.0655,2656.2,2655.3,0.55]
[1729307297488,0.0655,2656.2,2655.9,3.0]
[1729307297815,0.0655,2656.2,2656.0,0.05957029]
[1729307297986,0.005,2656.4,2655.5,0.55]
[1729307298188,0.005,2656.4,2655.6,0.7524]
[1729307298381,0.005,2656.4,2655.7,0.55]
[1729307300023,1e-05,2656.4,2655.7,0.55]
[1729307301284,1e-05,2656.4,2656.3,3.0]
[1729307301484,1e-05,2656.4,2656.3,3.85]
[1729307301783,1e-05,2656.4,2656.3,0.85]
[1729307301984,1e-05,2656.4,2656.3,0.55]
[1729307302311,1e-05,2656.4,2655.6,0.7524]
[1729307304032,1e-05,2656.4,2655.1,0.43045158]
[1729307304033,1e-05,2656.4,2655.2,0.7524]
[1729307304403,1e-05,2656.4,2655.2,1.60650569]
[1729307305286,1e-05,2656.4,2655.3,0.55]
[1729307305488,1e-05,2656.4,2655.5,0.55]
[1729307306230,1e-05,2656.4,2655.7,0.55]
[1729307306527,1e-05,2656.4,2655.5,0.55]
[1729307309752,1e-05,2656.4,2655.9,0.55]
[1729307312818,4.2e-06,2656.8,2655.9,0.55]
[1729307313462,4.2e-06,2656.8,2656.1,3.55]
[1729307313619,4.2e-06,2656.8,2656.2,0.82734]
[1729307313960,4.2e-06,2656.8,2656.3,0.55]
[1729307314112,4.2e-06,2656.8,2656.5,0.55]
[1729307314526,4.2e-06,2656.8,2656.3,0.55]
[1729307315021,4.2e-06,2656.8,2656.1,0.55]
[1729307317052,4.2e-06,2656.8,2656.1,3.55]
[1729307317380,4.2e-06,2656.8,2656.3,0.55]
[1729307318720,4.2e-06,2656.8,2656.5,3.55]
[1729307319081,4.2e-06,2656.8,2656.7,0.55]
[1729307319565,4.2e-06,2656.8,2656.7,4.40410569]
[1729307320151,4.2e-06,2656.8,2656.7,9.08710569]
[1729307320327,4.2e-06,2656.8,2656.7,9.94343603]
[1729307321263,4.2e-06,2656.8,2656.7,5.97243603]
[1729307321464,4.2e-06,2656.8,2656.7,2.11833034]
[1729307321764,4.2e-06,2656.8,2656.7,5.97243603]
[1729307327443,4.2e-06,2656.8,2656.7,5.54198445]
[1729307327783,4.2e-06,2656.8,2656.7,5.97243603]
[1729307328096,4.2e-06,2656.8,2656.7,12.20943603]
[1729307328253,7.5980142,2659.4,2656.9,6.787]
[1729307328440,7.5980142,2659.4,2657.4,0.55]
[1729307328639,7.5980142,2659.4,2657.6,0.55]
[1729307328887,7.5480142,2659.4,2657.6,0.55]
[1729307329486,7.5480142,2659.4,2657.8,0.55]
[1729307329687,0.75480142,2659.3,2657.9,3.0]
[1729307329856,0.0780142,2659.4,2658.2,0.55]
[1729307330386,0.0780142,2659.4,2658.2,3.55]
[1729307331283,0.0780142,2659.4,2658.2,0.55]
[1729307334674,0.0780142,2659.4,2657.9,0.55]
[1729307334848,0.0780142,2659.4,2657.8,0.762]
[1729307335049,0.0780142,2659.4,2657.9,0.3762]
[1729307336294,0.0780142,2659.4,2658.0,0.8235]
[1729307336654,0.0780142,2659.4,2658.1,0.55]
[1729307339263,0.0780142,2659.4,2658.0,0.8235]
[1729307339473,3.8382542,2659.4,2657.7,3.8235]
[1729307339698,0.38382542,2659.3,2657.8,0.70453]
[1729307340393,0.38382542,2659.3,2657.7,0.8235]
[1729307340394,3.76061,2659.2,2657.7,0.8235]
[1729307340709,3.76074,2659.1,2657.7,0.8235]
[1729307341273,3.76061,2659.2,2657.7,0.8235]
[1729307341501,3.76069,2659.1,2657.7,0.8235]
[1729307341700,3.76145,2658.6,2657.2,0.8235]
[1729307341899,3.76175,2658.4,2656.9,0.8235]
[1729307342099,0.75227,2658.5,2656.5,0.8235]
[1729307342100,3.76209,2658.1,2656.5,0.8235]
[1729307342416,3.76244,2657.9,2656.5,0.8235]
[1729307342614,3.76209,2658.1,2656.5,0.8235]
[1729307342914,3.76216,2658.1,2656.4,0.87075281]
[1729307343110,3.76239,2657.9,2656.4,0.87075281]
[1729307343271,3.76239,2657.9,2656.2,0.8235]
[1729307343272,3.76265,2657.7,2656.2,0.8235]
[1729307343674,3.76294,2657.5,2656.2,0.8235]
[1729307343918,3.76294,2657.5,2655.9,0.8235]
[1729307344221,7.47,2657.9,2655.9,0.8235]
[1729307344222,11.23242,2657.9,2655.9,0.8235]
[1729307344428,1.1984837,2657.8,2656.0,0.94603063]
[1729307344583,4.9609937,2657.8,2656.0,0.94603063]
[1729307346442,3.76265,2657.7,2656.0,0.94603063]
[1729307346592,4.9609937,2657.8,2656.0,0.94603063]
[1729307346982,3.76269,2657.7,2656.0,0.55]
[1729307347225,0.87236837,2657.6,2656.1,0.03788743]
[1729307347430,4.63517837,2657.6,2656.1,0.03788743]
[1729307347596,0.87236837,2657.6,2655.9,0.8235]
[1729307348224,0.87236837,2657.6,2656.0,0.55]
[1729307348423,1.1984837,2657.8,2656.1,0.8235]
[1729307348625,1.1984837,2657.8,2656.2,0.07527262]
[1729307348832,1.1984837,2657.8,2656.1,1.69425281]
[1729307349033,1.1984837,2657.8,2656.3,0.0340188]
[1729307349185,1.1984837,2657.8,2656.4,0.07527264]
[1729307349384,0.86684837,2657.7,2656.4,0.07527264]
[1729307349624,0.86684837,2657.7,2656.3,0.07527265]
[1729307350636,0.86684837,2657.7,2656.1,1.24715411]
[1729307350793,0.86684837,2657.7,2656.2,0.07527269]
[1729307351437,0.86684837,2657.7,2656.1,1.24715411]
[1729307351616,0.86684837,2657.7,2656.2,1.12319799]
[1729307351823,0.86684837,2657.7,2656.3,0.89877272]
[1729307352188,0.86684837,2657.7,2656.3,0.8235]
[1729307352530,0.86684837,2657.7,2656.6,3.0]
[1729307352893,0.86684837,2657.7,2656.4,3.0]
[1729307353092,0.86684837,2657.7,2656.3,0.8235]
[1729307353093,3.76291,2657.6,2656.3,0.8235]
[1729307353292,0.46297584,2657.5,2656.4,0.07526001]
[1729307353532,4.62950837,2657.7,2656.3,0.8235]
[1729307353894,3.76282,2657.6,2656.3,0.8235]
[1729307354435,0.86684837,2657.7,2656.4,0.07528271]
[1729307354651,0.86684837,2657.7,2656.5,0.07527144]
[1729307354928,0.86684837,2657.7,2656.3,0.8235]
[1729307357046,0.0204,2657.6,2656.3,0.80307438]
[1729307358037,0.48537584,2657.6,2656.3,0.80307438]
[1729307358467,4.24817584,2657.6,2656.3,0.80307438]
[1729307359558,3.76301,2657.5,2656.3,0.80307438]
[1729307360619,0.48537584,2657.6,2656.3,0.80307438]
[1729307360821,3.78327,2657.6,2656.3,0.80307438]
[1729307361355,3.76297,2657.5,2656.3,0.80307438]
[1729307361514,0.0204,2657.4,2656.3,0.80307438]
[1729307362459,3.78347,2657.4,2656.3,0.80307438]
[1729307364581,3.76329,2657.3,2656.3,0.80307438]
[1729307364772,0.754676,2657.2,2656.3,0.80307438]
[1729307366687,0.0204,2657.4,2656.3,0.80307438]
[1729307369242,3.78356,2657.4,2656.3,0.80307438]
[1729307369463,3.76322,2657.3,2656.3,0.80307438]
[1729307370591,0.0204,2657.4,2656.3,0.80307438]
[1729307370818,3.76322,2657.3,2656.3,0.80307438]
[1729307371016,0.378362,2657.2,2656.3,0.80307438]
[1729307371521,3.78392,2657.1,2656.3,0.80307438]
[1729307371724,0.0204,2657.1,2656.3,0.80307438]
[1729307375927,0.0204,2657.4,2656.3,0.80307438]
[1729307377144,0.86684837,2657.7,2656.3,0.80307438]
[1729307379147,0.86684837,2657.7,2656.5,0.7681]
[1729307379442,0.86684837,2657.7,2656.7,0.7681]
[1729307382637,0.46498384,2657.6,2656.7,0.7681]
[1729307383440,0.86684837,2657.7,2656.7,0.7681]
[1729307390674,1.45557377,2657.7,2656.7,0.7681]
[1729307399240,0.5887254,2657.7,2656.9,0.7637]
[1729307399478,0.0204,2659.0,2657.1,0.8098]
[1729307399786,0.0204,2659.0,2657.3,0.8098]
[1729307403537,0.0204,2658.8,2657.3,0.8098]
[1729307403737,0.398536,2658.8,2657.3,0.8098]
[1729307406402,4.369536,2658.8,2657.3,0.8098]
[1729307406606,0.398536,2658.8,2657.3,0.8098]
[1729307407161,4.159626,2658.8,2657.3,0.8098]
[1729307408474,7.920826,2658.8,2657.3,0.8098]
[1729307408775,0.0204,2658.5,2657.3,0.8098]
[1729307409101,3.78193,2658.5,2657.3,0.8098]
[1729307409253,7.54387,2658.4,2657.3,0.8098]
[1729307409610,0.0204,2658.0,2657.3,0.8098]
[1729307410160,3.78264,2658.0,2657.3,0.8098]
[1729307410380,0.378264,2657.9,2655.7,0.8098]
[1729307410583,4.31258,2657.8,2655.7,0.8098]
[1729307410790,3.7831,2657.7,2655.7,0.8098]
[1729307410972,0.55,2657.6,2655.7,0.8098]
[1729307411192,0.55,2657.6,2655.9,0.8098]
[1729307412062,0.0204,2657.5,2655.9,1.23345411]
[1729307412268,0.0204,2657.5,2656.0,0.8098]
[1729307413215,0.55,2657.4,2656.0,0.8098]
[1729307413368,0.433334,2657.3,2656.0,0.8098]
[1729307413569,0.0204,2657.2,2656.0,0.8098]
[1729307417984,0.55,2657.4,2656.0,0.8098]
[1729307418315,0.0204,2657.5,2656.0,0.8098]
[1729307419491,0.5704,2657.5,2656.0,0.8098]
[1729307419721,0.433319,2657.4,2656.0,0.8098]
[1729307422085,0.433319,2657.4,2656.1,0.7798]
[1729307422428,11.25299,2657.8,2656.1,0.7798]
[1729307423349,7.4904,2657.8,2656.1,0.7798]
[1729307423502,0.39218767,2657.7,2656.1,0.7798]
[1729307426715,7.4904,2657.8,2656.1,0.7798]
[1729307427146,7.4824,2657.8,2656.1,0.7798]
[1729307427452,1.124478,2657.7,2656.1,0.7798]
[1729307429738,1.144878,2657.7,2656.1,0.7798]
[1729307431756,4.907588,2657.7,2656.1,0.7798]
[1729307432542,3.76289,2657.6,2656.1,0.7798]
[1729307432753,1.144878,2657.7,2656.1,0.7798]
[1729307432754,3.763,2657.5,2656.1,0.7798]
[1729307432952,0.3763,2657.4,2656.1,0.7798]
[1729307433759,3.76323,2657.3,2656.1,0.7798]
[1729307434057,0.5704,2657.2,2656.1,0.7798]
[1729307435044,3.76338,2657.2,2656.1,0.7798]
[1729307435677,3.76352,2657.1,2656.1,0.7798]
[1729307436560,3.76348,2657.2,2656.1,0.7798]
[1729307436760,0.376348,2657.1,2656.1,0.7798]
[1729307437182,3.76414,2656.7,2656.1,0.7798]
[1729307437939,3.76437,2656.5,2656.1,0.7798]
[1729307438136,0.55,2656.4,2656.1,0.7798]
[1729307438659,0.55,2656.4,2654.6,0.818]
[1729307438665,4.31449,2656.4,2654.6,0.818]
[1729307438840,0.807886,2656.3,2654.8,0.818]
[1729307440383,0.55,2655.9,2654.8,0.818]
[1729307441080,3.7648,2656.2,2654.8,0.818]
[1729307441081,0.55,2656.1,2654.8,0.818]
[1729307441448,0.55,2656.2,2654.8,0.818]
[1729307441981,0.55,2655.9,2654.8,0.818]
[1729307442207,0.431506,2655.8,2654.8,0.818]
[1729307443285,4.196876,2655.8,2654.8,0.818]
[1729307443978,3.76557,2655.7,2654.8,0.818]
[1729307444302,3.7655,2655.7,2654.8,0.818]
[1729307444609,0.55,2655.7,2654.8,0.818]
[1729307444754,0.4746876,2655.6,2654.8,0.818]
[1729307448285,3.76512,2656.0,2654.8,0.818]
[1729307448286,0.55,2655.9,2654.8,0.818]
[1729307448704,4.31526,2655.9,2654.8,0.818]
[1729307450610,0.55,2656.0,2654.8,0.818]
[1729307450974,4.31509,2656.0,2654.8,0.818]
[1729307451413,0.55,2656.0,2654.8,0.818]
[1729307451610,0.431492,2655.9,2654.8,0.818]
[1729307451973,8.08084,2655.8,2654.8,0.818]
[1729307452188,4.31538,2655.8,2654.8,0.818]
[1729307452623,8.08081,2655.8,2654.8,0.818]
[1729307452930,4.31538,2655.8,2654.8,0.818]
[1729307453128,0.4746872,2655.7,2654.8,0.818]
[1729307454589,0.431492,2655.9,2654.8,0.818]
[1729307454826,4.31507,2656.0,2654.8,0.818]
[1729307455090,3.76539,2655.8,2654.8,0.818]
[1729307455297,4.31515,2656.0,2654.8,0.818]
[1729307455701,0.55,2656.0,2654.8,0.818]
[1729307456303,0.39243201,2656.1,2654.8,0.818]
[1729307456521,0.4964948,2656.1,2655.0,0.8258]
[1729307458392,0.807886,2656.3,2655.0,0.8258]
[1729307463632,4.31486,2656.2,2655.0,0.8258]
[1729307463841,3.76541,2655.8,2655.0,0.8258]
[1729307464137,3.76555,2655.7,2655.0,0.8258]
[1729307465248,4.514,2656.2,2655.0,0.8258]
[1729307465471,4.316,2655.4,2655.0,0.8258]
[1729307465640,3.76605,2655.3,2653.1,0.8258]
[1729307465827,0.55,2655.4,2653.3,0.8258]
[1729307466023,7.462,2655.5,2653.4,0.39698745]
[1729307466250,7.462,2655.5,2653.5,0.8258]
[1729307466421,0.7462,2655.4,2653.6,0.8258]
[1729307466833,0.7462,2655.4,2653.8,0.55]
[1729307467036,0.7462,2655.4,2653.6,0.55]
[1729307467037,0.7462,2655.4,2653.9,0.8258]
[1729307468122,0.7462,2655.4,2654.1,0.8258]
[1729307468430,7.462,2655.5,2654.2,0.55]
[1729307468756,7.462,2655.5,2653.5,0.39698745]
[1729307468757,7.462,2655.5,2653.9,0.8258]
[1729307468961,7.462,2655.5,2654.1,0.8258]
[1729307469122,7.462,2655.5,2654.2,0.55]
[1729307469318,7.462,2655.5,2654.3,0.8258]
[1729307469554,0.7462,2655.4,2654.3,0.8258]
[1729307470341,7.462,2655.5,2654.3,0.8258]
[1729307471823,0.55,2655.7,2654.3,0.8258]
[1729307472025,0.55,2655.8,2654.3,0.8258]
[1729307472584,4.31542,2655.8,2654.6,0.8258]
[1729307473243,3.76555,2655.7,2654.6,0.8258]
[1729307473434,4.197195,2655.6,2654.6,0.8258]
[1729307473638,0.431555,2655.6,2654.6,0.8258]
[1729307474149,3.76578,2655.5,2654.6,0.8258]
[1729307475640,4.197185,2655.6,2654.6,0.8258]
[1729307476018,0.431555,2655.6,2654.6,0.8258]
[1729307476138,0.4197105,2655.5,2654.6,0.8258]
[1729307478044,4.31538,2655.8,2654.6,0.8258]
[1729307478244,7.462,2655.9,2654.6,0.8258]
[1729307478448,11.22721,2655.9,2654.6,0.8258]
[1729307478869,7.462,2655.9,2654.6,0.8258]
[1729307479075,1.122706,2655.8,2654.6,0.8258]
[1729307481985,0.55,2655.7,2654.6,0.8258]
[1729307482144,4.31555,2655.7,2654.6,0.8258]
[1729307482342,3.76479,2656.2,2653.7,3.0]
[1729307482343,3.76369,2657.0,2654.9,0.55]
[1729307482599,0.3930558,2656.6,2655.2,0.8215]
[1729307482895,3.76344,2657.2,2655.5,0.8215]
[1729307483044,4.555574,2657.1,2655.6,0.8215]
[1729307483245,3.76386,2656.9,2655.7,0.8215]
[1729307483934,0.55,2656.8,2655.7,0.8215]
[1729307485199,0.55,2656.6,2655.7,0.8215]
[1729307485802,0.55,2656.7,2655.7,0.8215]
[1729307490047,0.470684,2656.6,2655.7,0.8215]
[1729307490422,0.55,2656.7,2655.7,0.8215]
[1729307493051,0.55,2656.8,2655.7,0.8215]
[1729307493958,0.55,2656.6,2655.7,0.8215]
[1729307494418,4.31393,2656.8,2655.7,0.8215]
[1729307495013,8.07794,2656.8,2655.7,0.8215]
[1729307495337,0.55,2656.6,2655.7,0.8215]
[1729307496928,0.807794,2656.7,2655.7,0.8215]
[1729307497126,4.15661,2657.0,2655.7,0.8215]
[1729307497338,0.55,2656.9,2655.7,0.8215]
[1729307499718,0.55,2657.0,2655.7,0.8215]
[1729307499917,4.31371,2657.0,2655.7,0.8215]
[1729307503187,8.07749,2657.0,2655.7,0.8215]
[1729307503360,0.8869454,2656.9,2655.7,0.8215]
[1729307505260,4.6507454,2656.9,2655.7,0.8215]
[1729307505781,0.8869454,2656.9,2655.7,0.8215]
[1729307507991,0.791964,2657.1,2655.7,0.8215]
[1729307512148,7.462,2657.2,2655.7,0.8215]
[1729307512364,0.58898095,2657.4,2656.2,0.7825]
[1729307512589,7.462,2657.7,2656.2,0.7825]
[1729307512802,7.462,2657.7,2656.3,0.7825]
[1729307512962,3.76195,2658.2,2656.5,0.7825]
[1729307513298,0.376195,2658.1,2656.5,0.7825]
[1729307515970,11.22374,2658.4,2656.6,0.59631084]
[1729307515971,0.55,2658.3,2656.6,0.59631084]
[1729307516167,0.55,2658.3,2656.7,0.7799]
[1729307516380,0.55,2658.3,2656.7,0.85149514]
[1729307518419,0.55,2658.3,2656.8,0.7799]
[1729307518870,0.55,2658.3,2656.9,0.20430991]
[1729307519072,0.55,2658.3,2657.0,0.7799]
[1729307522199,7.462,2658.4,2657.0,0.7799]
[1729307522405,7.462,2658.4,2657.1,0.7799]
[1729307522726,7.462,2658.4,2657.3,0.7799]